[Event "*** Titled Tuesday Blitz"]
[Site "Chess.com"]
[Date "2020.01.07"]
[Round "7"]
[White "TypeThreeWaffles"]
[Black "guillembaches"]
[Result "0-1"]
[WhiteElo "2434"]
[BlackElo "2299"]
[TimeControl "180+2"]
[EndTime "14:34:16 PST"]
[Termination "guillembaches won by resignation"]

1. e4 {[%clk 0:03:01.9]} 1... c5 {[%clk 0:02:59.1]} 2. Nf3 {[%clk 0:03:03.3]}
2... d6 {[%clk 0:03:00.2]} 3. d4 {[%clk 0:03:04.8]} 3... cxd4 {[%clk 0:03:02.1]}
4. Nxd4 {[%clk 0:03:06.7]} 4... Nf6 {[%clk 0:03:03.5]} 5. Nc3 {[%clk 0:03:08.3]}
5... a6 {[%clk 0:03:04.9]} 6. Bc4 {[%clk 0:03:09.8]} 6... e6 {[%clk 0:03:02.5]}
7. Bb3 {[%clk 0:03:11.2]} 7... b5 {[%clk 0:03:02.5]} 8. O-O {[%clk 0:03:11.8]}
8... Be7 {[%clk 0:03:00.4]} 9. Qf3 {[%clk 0:03:12.4]} 9... Qb6 {[%clk
0:02:59.1]} 10. Be3 {[%clk 0:03:12.9]} 10... Qb7 {[%clk 0:02:59.3]} 11. a3
{[%clk 0:03:06.6]} 11... O-O {[%clk 0:02:58.7]} 12. Qg3 {[%clk 0:02:53.5]} 12...
Bd7 {[%clk 0:02:53]} 13. f3 {[%clk 0:02:54.2]} 13... Nc6 {[%clk 0:02:53.2]} 14.
Nxc6 {[%clk 0:02:53.3]} 14... Bxc6 {[%clk 0:02:50.9]} 15. Ne2 {[%clk 0:02:54.4]}
15... e5 {[%clk 0:02:28.8]} 16. Rfd1 {[%clk 0:02:47.6]} 16... Kh8 {[%clk
0:02:23]} 17. Bg5 {[%clk 0:02:46.6]} 17... Rad8 {[%clk 0:01:53]} 18. Bxf6 {[%clk
0:02:46.9]} 18... Bxf6 {[%clk 0:01:54.9]} 19. Nc3 {[%clk 0:02:46.9]} 19... h6
{[%clk 0:01:50.4]} 20. Bd5 {[%clk 0:02:47.6]} 20... Bg5 {[%clk 0:01:47.3]} 21.
Qf2 {[%clk 0:02:42.3]} 21... Rc8 {[%clk 0:01:42.2]} 22. Bxc6 {[%clk 0:02:40.1]}
22... Qxc6 {[%clk 0:01:43.2]} 23. Rd3 {[%clk 0:02:33.2]} 23... f5 {[%clk
0:01:39]} 24. exf5 {[%clk 0:02:31.8]} 24... Rxf5 {[%clk 0:01:36.8]} 25. Rad1
{[%clk 0:02:33.1]} 25... Be7 {[%clk 0:01:21.9]} 26. Nd5 {[%clk 0:02:34]} 26...
Bf8 {[%clk 0:01:22.9]} 27. c3 {[%clk 0:02:34.8]} 27... e4 {[%clk 0:01:20.1]} 28.
Nb4 {[%clk 0:02:27.4]} 28... Qe8 {[%clk 0:01:09]} 29. Re3 {[%clk 0:02:21.6]}
29... d5 {[%clk 0:00:58.1]} 30. Rxd5 {[%clk 0:02:18.8]} 30... Rxd5 {[%clk
0:00:55.2]} 31. Nxd5 {[%clk 0:02:18.6]} 31... Bc5 {[%clk 0:00:55.3]} 32. fxe4
{[%clk 0:02:18.1]} 32... Bxe3 {[%clk 0:00:54.5]} 33. Qxe3 {[%clk 0:02:19]} 33...
Qe5 {[%clk 0:00:53.5]} 34. Qd4 {[%clk 0:02:18.4]} 34... Qxd4+ {[%clk 0:00:48.8]}
35. cxd4 {[%clk 0:02:19.5]} 35... Rc1+ {[%clk 0:00:49.8]} 36. Kf2 {[%clk
0:02:20.9]} 36... Rc2+ {[%clk 0:00:50.8]} 37. Kf3 {[%clk 0:02:22.4]} 37... Rxb2
{[%clk 0:00:51.6]} 38. e5 {[%clk 0:02:24]} 38... Kg8 {[%clk 0:00:52.7]} 39. Ne3
{[%clk 0:02:18.1]} 39... a5 {[%clk 0:00:49]} 40. d5 {[%clk 0:02:19.4]} 40... b4
{[%clk 0:00:50.1]} 41. axb4 {[%clk 0:02:20.3]} 41... a4 {[%clk 0:00:51.3]} 42.
d6 {[%clk 0:02:19.5]} 42... Kf7 {[%clk 0:00:50.4]} 43. Nc4 {[%clk 0:02:17.1]}
43... Rxb4 {[%clk 0:00:48]} 0-1

[Event "*** Titled Tuesday Blitz"]
[Site "Chess.com"]
[Date "2020.01.07"]
[Round "7"]
[White "Saloni1299"]
[Black "Sjakkerntobi"]
[Result "1-0"]
[WhiteElo "2130"]
[BlackElo "2277"]
[TimeControl "180+2"]
[EndTime "14:34:18 PST"]
[Termination "Saloni1299 won by checkmate"]

1. e4 {[%clk 0:03:01.9]} 1... c5 {[%clk 0:03:00.2]} 2. Nf3 {[%clk 0:03:02.3]}
2... e6 {[%clk 0:03:00.9]} 3. d4 {[%clk 0:03:03]} 3... cxd4 {[%clk 0:03:02.8]}
4. Nxd4 {[%clk 0:03:04.4]} 4... Nc6 {[%clk 0:03:04.7]} 5. Nc3 {[%clk 0:03:03.1]}
5... Qc7 {[%clk 0:03:05.8]} 6. f4 {[%clk 0:02:42.3]} 6... Bb4 {[%clk 0:02:45.4]}
7. Nb5 {[%clk 0:02:37.4]} 7... Qb8 {[%clk 0:02:36.1]} 8. a3 {[%clk 0:02:36.7]}
8... Be7 {[%clk 0:02:34]} 9. Be3 {[%clk 0:02:28.5]} 9... a6 {[%clk 0:02:34.1]}
10. Nd4 {[%clk 0:02:29.1]} 10... Nf6 {[%clk 0:02:32.2]} 11. Be2 {[%clk
0:02:18.8]} 11... d6 {[%clk 0:02:15.5]} 12. O-O {[%clk 0:02:16.3]} 12... O-O
{[%clk 0:02:14.4]} 13. Bd3 {[%clk 0:02:11.2]} 13... Nxd4 {[%clk 0:02:13.4]} 14.
Bxd4 {[%clk 0:02:12]} 14... e5 {[%clk 0:02:15.3]} 15. Be3 {[%clk 0:02:12.5]}
15... exf4 {[%clk 0:02:14.8]} 16. Bxf4 {[%clk 0:02:12.9]} 16... Be6 {[%clk
0:02:16.5]} 17. h3 {[%clk 0:02:10.6]} 17... Rd8 {[%clk 0:02:14.8]} 18. Qe2
{[%clk 0:02:10.1]} 18... b5 {[%clk 0:02:08.4]} 19. Rae1 {[%clk 0:02:10]} 19...
Nd7 {[%clk 0:02:05.8]} 20. Qh5 {[%clk 0:01:47.3]} 20... Ne5 {[%clk 0:02:01.2]}
21. Nd5 {[%clk 0:01:40]} 21... Bf8 {[%clk 0:01:57.8]} 22. Rf2 {[%clk 0:01:09.9]}
22... Nxd3 {[%clk 0:01:08.1]} 23. cxd3 {[%clk 0:01:08.8]} 23... g6 {[%clk
0:01:09.1]} 24. Nf6+ {[%clk 0:01:07.6]} 24... Kg7 {[%clk 0:01:08.8]} 25. Qxh7+
{[%clk 0:01:07.9]} 25... Kxf6 {[%clk 0:01:09.9]} 26. Bxd6+ {[%clk 0:01:00.1]}
26... Bf5 {[%clk 0:01:10.7]} 27. Bxb8 {[%clk 0:00:56.7]} 27... Raxb8 {[%clk
0:01:12.6]} 28. exf5 {[%clk 0:00:57.9]} 28... Bc5 {[%clk 0:01:12.9]} 29. fxg6+
{[%clk 0:00:57.2]} 29... Bxf2+ {[%clk 0:01:13.4]} 30. Kxf2 {[%clk 0:00:58.7]}
30... fxg6 {[%clk 0:01:10.5]} 31. Qe7+ {[%clk 0:00:58.7]} 31... Kf5 {[%clk
0:01:11.7]} 32. Re5+ {[%clk 0:00:59.6]} 32... Kf4 {[%clk 0:01:13.3]} 33. Qg5#
{[%clk 0:01:00.6]} 1-0

[Event "*** Titled Tuesday Blitz"]
[Site "Chess.com"]
[Date "2020.01.07"]
[Round "7"]
[White "cukus"]
[Black "Walter_White_Poland"]
[Result "1-0"]
[WhiteElo "2454"]
[BlackElo "2251"]
[TimeControl "180+2"]
[EndTime "14:34:30 PST"]
[Termination "cukus won on time"]

1. e4 {[%clk 0:02:39]} 1... e5 {[%clk 0:02:16.4]} 2. Nf3 {[%clk 0:02:38.2]} 2...
Nc6 {[%clk 0:02:17.2]} 3. Bb5 {[%clk 0:02:38.5]} 3... a6 {[%clk 0:02:17.6]} 4.
Ba4 {[%clk 0:02:37.2]} 4... Nf6 {[%clk 0:02:18]} 5. O-O {[%clk 0:02:25.1]} 5...
b5 {[%clk 0:02:17]} 6. Bb3 {[%clk 0:02:25.2]} 6... Be7 {[%clk 0:02:10.6]} 7. d3
{[%clk 0:02:26.2]} 7... d6 {[%clk 0:02:06.5]} 8. a4 {[%clk 0:02:19.9]} 8... Na5
{[%clk 0:01:30.5]} 9. Ba2 {[%clk 0:02:16.6]} 9... O-O {[%clk 0:01:21.2]} 10. h3
{[%clk 0:02:16.7]} 10... Be6 {[%clk 0:01:19.9]} 11. Bxe6 {[%clk 0:02:12]} 11...
fxe6 {[%clk 0:01:21]} 12. Nc3 {[%clk 0:02:12.5]} 12... c6 {[%clk 0:01:19.5]} 13.
b4 {[%clk 0:02:08.3]} 13... Nb7 {[%clk 0:01:18.6]} 14. a5 {[%clk 0:02:09]} 14...
Qc7 {[%clk 0:01:13.7]} 15. Ne2 {[%clk 0:02:06.6]} 15... d5 {[%clk 0:01:09.7]}
16. Rb1 {[%clk 0:02:04.1]} 16... dxe4 {[%clk 0:01:08]} 17. dxe4 {[%clk
0:02:04.6]} 17... Rad8 {[%clk 0:01:07.8]} 18. Qe1 {[%clk 0:01:59.7]} 18... Nxe4
{[%clk 0:01:07.2]} 19. Nc3 {[%clk 0:02:00.2]} 19... Nxc3 {[%clk 0:01:06.1]} 20.
Qxc3 {[%clk 0:02:02.1]} 20... e4 {[%clk 0:01:04.8]} 21. Nd4 {[%clk 0:01:48.5]}
21... Qe5 {[%clk 0:00:14.1]} 22. Qxc6 {[%clk 0:01:40.9]} 22... Rxd4 {[%clk
0:00:02.9]} 23. Qxb7 {[%clk 0:01:40.2]} 23... Bd6 {[%clk 0:00:03.7]} 24. g3
{[%clk 0:01:38.3]} 24... Qh5 {[%clk 0:00:03.9]} 25. Be3 {[%clk 0:01:25.1]} 1-0

[Event "*** Titled Tuesday Blitz"]
[Site "Chess.com"]
[Date "2020.01.07"]
[Round "7"]
[White "Keaton87"]
[Black "Philosopherrr"]
[Result "1-0"]
[WhiteElo "2621"]
[BlackElo "2461"]
[TimeControl "180+2"]
[EndTime "14:34:41 PST"]
[Termination "Keaton87 won by resignation"]

1. d4 {[%clk 0:03:01.9]} 1... Nf6 {[%clk 0:03:00.6]} 2. Bg5 {[%clk 0:03:03.1]}
2... e6 {[%clk 0:02:56.6]} 3. Nd2 {[%clk 0:03:03.5]} 3... d5 {[%clk 0:02:56.9]}
4. e3 {[%clk 0:03:04.1]} 4... Nbd7 {[%clk 0:02:54.4]} 5. f4 {[%clk 0:03:04.6]}
5... h6 {[%clk 0:02:54.3]} 6. Bh4 {[%clk 0:03:05.4]} 6... c5 {[%clk 0:02:55.7]}
7. c3 {[%clk 0:03:06.2]} 7... Qb6 {[%clk 0:02:55.4]} 8. Rb1 {[%clk 0:03:06.1]}
8... Bd6 {[%clk 0:02:51.7]} 9. Ngf3 {[%clk 0:03:06.7]} 9... cxd4 {[%clk
0:02:52.9]} 10. cxd4 {[%clk 0:03:06.9]} 10... O-O {[%clk 0:02:33.4]} 11. Bd3
{[%clk 0:03:07.2]} 11... Be7 {[%clk 0:01:52.5]} 12. O-O {[%clk 0:03:05.2]} 12...
Qd8 {[%clk 0:01:52.3]} 13. Ne5 {[%clk 0:03:03.2]} 13... Ne8 {[%clk 0:01:50.5]}
14. Bxe7 {[%clk 0:03:03.1]} 14... Qxe7 {[%clk 0:01:51.3]} 15. Qh5 {[%clk
0:03:01.6]} 15... Nd6 {[%clk 0:01:47.2]} 16. Rf3 {[%clk 0:02:57.9]} 16... Nf6
{[%clk 0:01:32.5]} 17. Qh4 {[%clk 0:02:58.3]} 17... Nf5 {[%clk 0:01:28.1]} 18.
Qf2 {[%clk 0:02:47.9]} 18... Nd6 {[%clk 0:01:23.8]} 19. Qh4 {[%clk 0:02:42.6]}
19... Nf5 {[%clk 0:01:23.9]} 20. Bxf5 {[%clk 0:02:42.8]} 20... exf5 {[%clk
0:01:25.1]} 21. Rc1 {[%clk 0:02:35.5]} 21... Be6 {[%clk 0:01:25.4]} 22. a3
{[%clk 0:02:35]} 22... Rac8 {[%clk 0:01:24.9]} 23. Rff1 {[%clk 0:02:36.1]} 23...
Qd6 {[%clk 0:01:14.9]} 24. Qf2 {[%clk 0:02:36.7]} 24... Ne4 {[%clk 0:01:15.4]}
25. Nxe4 {[%clk 0:02:37.1]} 25... fxe4 {[%clk 0:01:16.5]} 26. f5 {[%clk
0:02:38.1]} 26... Bd7 {[%clk 0:01:13]} 27. f6 {[%clk 0:02:38.1]} 27... g6 {[%clk
0:01:07.1]} 28. Qf4 {[%clk 0:02:26.7]} 28... Kh7 {[%clk 0:01:05.3]} 29. Nxg6
{[%clk 0:02:24.5]} 29... Qe6 {[%clk 0:00:54]} 30. Ne7 {[%clk 0:02:21.3]} 30...
Rxc1 {[%clk 0:00:53.1]} 31. Rxc1 {[%clk 0:02:22.5]} 31... Bc6 {[%clk 0:00:43.4]}
32. h3 {[%clk 0:02:21]} 32... Rd8 {[%clk 0:00:36.9]} 33. Kh2 {[%clk 0:02:19.1]}
33... Rd6 {[%clk 0:00:38.1]} 34. Rf1 {[%clk 0:02:19.9]} 34... Bb5 {[%clk
0:00:39.4]} 35. Rf2 {[%clk 0:02:20.5]} 35... Bd7 {[%clk 0:00:38.1]} 36. g4
{[%clk 0:02:12.6]} 36... Bc8 {[%clk 0:00:24.6]} 37. Ng8 {[%clk 0:01:49.1]} 37...
Kxg8 {[%clk 0:00:22.6]} 38. Qxh6 {[%clk 0:01:49.3]} 1-0

[Event "*** Titled Tuesday Blitz"]
[Site "Chess.com"]
[Date "2020.01.07"]
[Round "7"]
[White "Faqade"]
[Black "Hadza_3"]
[Result "1-0"]
[WhiteElo "2659"]
[BlackElo "2406"]
[TimeControl "180+2"]
[EndTime "14:34:46 PST"]
[Termination "Faqade won by checkmate"]

1. Nf3 {[%clk 0:03:01.9]} 1... Nf6 {[%clk 0:03:00.7]} 2. g3 {[%clk 0:03:02.3]}
2... g6 {[%clk 0:03:00.4]} 3. Bg2 {[%clk 0:03:04.2]} 3... Bg7 {[%clk 0:03:02.2]}
4. O-O {[%clk 0:03:05.4]} 4... d6 {[%clk 0:03:04.1]} 5. d3 {[%clk 0:03:07.3]}
5... c6 {[%clk 0:03:06]} 6. e4 {[%clk 0:03:07.8]} 6... e5 {[%clk 0:03:07.2]} 7.
a4 {[%clk 0:03:08.4]} 7... a5 {[%clk 0:03:07.4]} 8. Nbd2 {[%clk 0:03:09.4]} 8...
O-O {[%clk 0:03:08.3]} 9. Nc4 {[%clk 0:03:10.1]} 9... Qc7 {[%clk 0:03:04.5]} 10.
Re1 {[%clk 0:03:06.7]} 10... Be6 {[%clk 0:03:04.6]} 11. Ne3 {[%clk 0:03:07.1]}
11... h6 {[%clk 0:03:05.4]} 12. b3 {[%clk 0:02:59.8]} 12... Nbd7 {[%clk
0:03:06.2]} 13. Ba3 {[%clk 0:02:57.4]} 13... c5 {[%clk 0:03:04.2]} 14. Nd2
{[%clk 0:02:56.2]} 14... Nh7 {[%clk 0:02:58.9]} 15. Bb2 {[%clk 0:02:53.5]} 15...
Rae8 {[%clk 0:02:40.5]} 16. Ndc4 {[%clk 0:02:50.9]} 16... Nb6 {[%clk 0:02:24.8]}
17. Nxa5 {[%clk 0:02:49.5]} 17... f5 {[%clk 0:02:20.9]} 18. Nac4 {[%clk
0:02:39.7]} 18... f4 {[%clk 0:02:13.8]} 19. Nd5 {[%clk 0:02:39.9]} 19... Nxd5
{[%clk 0:02:08.6]} 20. exd5 {[%clk 0:02:40.4]} 20... Bc8 {[%clk 0:01:57.3]} 21.
a5 {[%clk 0:02:32.7]} 21... Ng5 {[%clk 0:01:55.7]} 22. h4 {[%clk 0:02:27.2]}
22... Nh3+ {[%clk 0:01:52.9]} 23. Bxh3 {[%clk 0:02:22.3]} 23... Bxh3 {[%clk
0:01:54.8]} 24. a6 {[%clk 0:02:14.2]} 24... b5 {[%clk 0:01:36.3]} 25. Nd2 {[%clk
0:02:13.4]} 25... Qd7 {[%clk 0:01:32.6]} 26. Qe2 {[%clk 0:02:11.2]} 26... f3
{[%clk 0:01:15.8]} 27. Qe4 {[%clk 0:01:39]} 27... Bg2 {[%clk 0:01:08.5]} 28. g4
{[%clk 0:01:38.8]} 28... Rf4 {[%clk 0:01:02.4]} 29. Qxf4 {[%clk 0:01:38.7]}
29... exf4 {[%clk 0:01:00.1]} 30. Rxe8+ {[%clk 0:01:38.1]} 30... Qxe8 {[%clk
0:01:02]} 31. a7 {[%clk 0:01:39.2]} 31... Qd7 {[%clk 0:00:55.6]} 32. a8=Q+
{[%clk 0:01:38.4]} 32... Bf8 {[%clk 0:00:44.9]} 33. Ra7 {[%clk 0:01:30.4]} 33...
Qxg4 {[%clk 0:00:20.3]} 34. Rg7+ {[%clk 0:01:29.4]} 34... Kh8 {[%clk 0:00:20.6]}
35. Qxf8# {[%clk 0:01:31.3]} 1-0

[Event "*** Titled Tuesday Blitz"]
[Site "Chess.com"]
[Date "2020.01.07"]
[Round "7"]
[White "gena217"]
[Black "tigra"]
[Result "1-0"]
[WhiteElo "2948"]
[BlackElo "2761"]
[TimeControl "180+2"]
[EndTime "14:34:49 PST"]
[Termination "gena217 won by resignation"]

1. e4 {[%clk 0:03:01.9]} 1... c5 {[%clk 0:03:00.1]} 2. Nf3 {[%clk 0:03:02.7]}
2... g6 {[%clk 0:03:01.7]} 3. c3 {[%clk 0:03:03]} 3... Bg7 {[%clk 0:03:01.2]} 4.
d4 {[%clk 0:03:04.1]} 4... cxd4 {[%clk 0:03:03.1]} 5. cxd4 {[%clk 0:03:06]} 5...
d5 {[%clk 0:03:04.9]} 6. e5 {[%clk 0:03:07.6]} 6... Bg4 {[%clk 0:03:06.1]} 7.
Bb5+ {[%clk 0:03:07.6]} 7... Nd7 {[%clk 0:03:06.5]} 8. O-O {[%clk 0:03:02.8]}
8... a6 {[%clk 0:03:06]} 9. Ba4 {[%clk 0:02:53.5]} 9... e6 {[%clk 0:03:00.5]}
10. Nbd2 {[%clk 0:02:36]} 10... b5 {[%clk 0:02:59.4]} 11. Bc2 {[%clk 0:02:36.4]}
11... Ne7 {[%clk 0:02:58.7]} 12. h3 {[%clk 0:02:36.8]} 12... Bf5 {[%clk
0:02:59.7]} 13. Nb3 {[%clk 0:02:27.1]} 13... Rc8 {[%clk 0:02:45.7]} 14. Bxf5
{[%clk 0:02:12.3]} 14... Nxf5 {[%clk 0:02:47.6]} 15. Bg5 {[%clk 0:02:12.2]}
15... Qb6 {[%clk 0:02:43.5]} 16. g4 {[%clk 0:02:06.3]} 16... Ne7 {[%clk
0:02:41.5]} 17. Qd2 {[%clk 0:02:03.8]} 17... h6 {[%clk 0:02:40.3]} 18. Bxe7
{[%clk 0:01:50]} 18... Kxe7 {[%clk 0:02:41.3]} 19. Qb4+ {[%clk 0:01:51.5]} 19...
Kd8 {[%clk 0:02:39.8]} 20. Rfc1 {[%clk 0:01:51.6]} 20... Rc4 {[%clk 0:02:37.7]}
21. Qd2 {[%clk 0:01:50.8]} 21... Ke7 {[%clk 0:02:29.6]} 22. Na5 {[%clk
0:01:49.9]} 22... Rxc1+ {[%clk 0:01:54.9]} 23. Rxc1 {[%clk 0:01:51.8]} 23... Ra8
{[%clk 0:01:55.9]} 24. Rc6 {[%clk 0:01:30.2]} 24... Qb8 {[%clk 0:01:56.6]} 25.
Qc1 {[%clk 0:01:14.3]} 25... Bf8 {[%clk 0:01:44.5]} 26. Rc7 {[%clk 0:01:10.4]}
26... Ke8 {[%clk 0:01:44]} 27. Qc6 {[%clk 0:01:10.7]} 27... Qd8 {[%clk
0:01:39.8]} 28. Rxd7 {[%clk 0:01:11.8]} 28... Qxd7 {[%clk 0:01:40.8]} 29. Qxa8+
{[%clk 0:01:13.2]} 29... Qd8 {[%clk 0:01:42.1]} 30. Qxa6 {[%clk 0:01:10.3]}
30... Qb8 {[%clk 0:01:32.8]} 31. Nc6 {[%clk 0:01:10]} 31... Qc7 {[%clk
0:01:31.8]} 32. Qxb5 {[%clk 0:01:11.1]} 32... Kd7 {[%clk 0:01:26.5]} 33. Nb4+
{[%clk 0:01:04.3]} 33... Kd8 {[%clk 0:01:26.3]} 34. Kg2 {[%clk 0:01:00.4]} 34...
g5 {[%clk 0:01:16.4]} 35. a4 {[%clk 0:00:59.4]} 35... Qc4 {[%clk 0:01:10.9]} 36.
Qxc4 {[%clk 0:00:53.4]} 36... dxc4 {[%clk 0:01:11.9]} 37. Nc6+ {[%clk
0:00:54.9]} 37... Kc7 {[%clk 0:01:11.4]} 38. Na5 {[%clk 0:00:55.9]} 1-0

[Event "*** Titled Tuesday Blitz"]
[Site "Chess.com"]
[Date "2020.01.07"]
[Round "7"]
[White "enzovsky"]
[Black "kingofthenil"]
[Result "0-1"]
[WhiteElo "2252"]
[BlackElo "2480"]
[TimeControl "180+2"]
[EndTime "14:35:11 PST"]
[Termination "kingofthenil won on time"]

1. e4 {[%clk 0:03:01.9]} 1... Nc6 {[%clk 0:02:59.7]} 2. Nf3 {[%clk 0:02:57.8]}
2... d6 {[%clk 0:03:00.5]} 3. d4 {[%clk 0:02:55.2]} 3... Nf6 {[%clk 0:03:02.4]}
4. Nc3 {[%clk 0:02:52.5]} 4... g6 {[%clk 0:03:03.5]} 5. h3 {[%clk 0:02:51.2]}
5... Bg7 {[%clk 0:03:04.4]} 6. Be3 {[%clk 0:02:49.5]} 6... O-O {[%clk
0:03:04.5]} 7. Qd2 {[%clk 0:02:50.5]} 7... a6 {[%clk 0:03:04.5]} 8. O-O-O {[%clk
0:02:50.6]} 8... b5 {[%clk 0:03:04.5]} 9. a3 {[%clk 0:02:49.8]} 9... Bb7 {[%clk
0:03:02.5]} 10. Bh6 {[%clk 0:02:49.1]} 10... b4 {[%clk 0:03:02.4]} 11. axb4
{[%clk 0:02:36.1]} 11... Nxb4 {[%clk 0:03:04.3]} 12. Bxg7 {[%clk 0:02:34.7]}
12... Kxg7 {[%clk 0:03:01.9]} 13. Qf4 {[%clk 0:02:15]} 13... c5 {[%clk
0:02:52.5]} 14. dxc5 {[%clk 0:01:29.7]} 14... Qa5 {[%clk 0:02:50.5]} 15. e5
{[%clk 0:01:02.9]} 15... dxe5 {[%clk 0:02:40.6]} 16. Qxe5 {[%clk 0:01:04.8]}
16... Rfd8 {[%clk 0:02:28.7]} 17. Bc4 {[%clk 0:00:53.6]} 17... Qa1+ {[%clk
0:01:47.3]} 18. Nb1 {[%clk 0:00:53.3]} 18... Bd5 {[%clk 0:01:45.1]} 19. Bxd5
{[%clk 0:00:23.5]} 19... Rxd5 {[%clk 0:01:47]} 20. Rxd5 {[%clk 0:00:23]} 20...
Nxd5 {[%clk 0:01:45.2]} 21. b3 {[%clk 0:00:14.4]} 21... Qa5 {[%clk 0:01:44.3]}
22. Rd1 {[%clk 0:00:12.4]} 22... Qxc5 {[%clk 0:01:39.1]} 23. Kb2 {[%clk
0:00:10.1]} 23... Rc8 {[%clk 0:01:38.5]} 24. Rd2 {[%clk 0:00:07.5]} 24... a5
{[%clk 0:01:14.8]} 25. c4 {[%clk 0:00:08.3]} 25... a4 {[%clk 0:01:15.8]} 26.
cxd5 {[%clk 0:00:04.9]} 26... Qc1+ {[%clk 0:01:16]} 27. Ka2 {[%clk 0:00:06.2]}
27... axb3+ {[%clk 0:01:14.6]} 28. Kxb3 {[%clk 0:00:07.6]} 28... Rb8+ {[%clk
0:01:13.7]} 29. Qxb8 {[%clk 0:00:06.5]} 29... Qxb1+ {[%clk 0:01:15]} 30. Kc3
{[%clk 0:00:06.8]} 30... Qxb8 {[%clk 0:01:15.7]} 0-1

[Event "*** Titled Tuesday Blitz"]
[Site "Chess.com"]
[Date "2020.01.07"]
[Round "7"]
[White "Caracternin123"]
[Black "vanea_03"]
[Result "1-0"]
[WhiteElo "2536"]
[BlackElo "2676"]
[TimeControl "180+2"]
[EndTime "14:35:29 PST"]
[Termination "Caracternin123 won by resignation"]

1. d4 {[%clk 0:03:01.9]} 1... Nf6 {[%clk 0:02:59.7]} 2. Nf3 {[%clk 0:03:02.5]}
2... d5 {[%clk 0:02:59.9]} 3. Bf4 {[%clk 0:03:03]} 3... c5 {[%clk 0:03:00.7]} 4.
e3 {[%clk 0:03:04.2]} 4... Nc6 {[%clk 0:03:00.9]} 5. Nbd2 {[%clk 0:03:05.3]}
5... e6 {[%clk 0:02:53.8]} 6. c3 {[%clk 0:03:05.5]} 6... cxd4 {[%clk 0:02:50.7]}
7. exd4 {[%clk 0:03:06.3]} 7... Nh5 {[%clk 0:02:51.5]} 8. Bg5 {[%clk 0:02:55.2]}
8... f6 {[%clk 0:02:52.2]} 9. Bh4 {[%clk 0:02:55.8]} 9... Bd6 {[%clk 0:02:48.9]}
10. Ne5 {[%clk 0:02:43.5]} 10... g6 {[%clk 0:02:48.7]} 11. Nxc6 {[%clk
0:02:31.6]} 11... bxc6 {[%clk 0:02:50.6]} 12. g3 {[%clk 0:02:27.7]} 12... O-O
{[%clk 0:02:46.8]} 13. Be2 {[%clk 0:02:27.6]} 13... Ng7 {[%clk 0:02:46.6]} 14.
g4 {[%clk 0:02:28.4]} 14... Bf4 {[%clk 0:02:32.3]} 15. O-O {[%clk 0:02:27.2]}
15... Qd6 {[%clk 0:02:29.5]} 16. Bg3 {[%clk 0:02:26.4]} 16... Rb8 {[%clk
0:02:07.6]} 17. Nb3 {[%clk 0:02:25.5]} 17... f5 {[%clk 0:02:03.7]} 18. Qc2
{[%clk 0:02:12.3]} 18... h5 {[%clk 0:01:45.7]} 19. gxh5 {[%clk 0:02:08]} 19...
gxh5 {[%clk 0:01:45.8]} 20. Nc5 {[%clk 0:01:51.2]} 20... h4 {[%clk 0:01:42.5]}
21. Bxh4 {[%clk 0:01:51.9]} 21... Bxh2+ {[%clk 0:01:36.9]} 22. Kg2 {[%clk
0:01:43]} 22... e5 {[%clk 0:01:31]} 23. Rh1 {[%clk 0:01:37.4]} 23... Bf4 {[%clk
0:01:16.9]} 24. Rag1 {[%clk 0:01:36]} 24... e4 {[%clk 0:00:55]} 25. Kf1 {[%clk
0:01:35.7]} 25... Be6 {[%clk 0:00:41.2]} 26. f3 {[%clk 0:01:05.6]} 26... Rbc8
{[%clk 0:00:24.8]} 27. Bd1 {[%clk 0:01:01.7]} 27... Rc7 {[%clk 0:00:19.1]} 28.
Rg6 {[%clk 0:00:47.8]} 28... Re8 {[%clk 0:00:08.6]} 29. Bf6 {[%clk 0:00:45.7]}
29... Bf7 {[%clk 0:00:06.2]} 30. Rxg7+ {[%clk 0:00:45.5]} 1-0

[Event "*** Titled Tuesday Blitz"]
[Site "Chess.com"]
[Date "2020.01.07"]
[Round "7"]
[White "ChessBitl"]
[Black "albi1999"]
[Result "1-0"]
[WhiteElo "2380"]
[BlackElo "2512"]
[TimeControl "180+2"]
[EndTime "14:35:31 PST"]
[Termination "ChessBitl won by resignation"]

1. e4 {[%clk 0:03:01]} 1... c6 {[%clk 0:02:13.4]} 2. d4 {[%clk 0:03:00.6]} 2...
d5 {[%clk 0:02:15.3]} 3. Nd2 {[%clk 0:03:02.2]} 3... dxe4 {[%clk 0:02:12.7]} 4.
Nxe4 {[%clk 0:03:03.6]} 4... Nf6 {[%clk 0:02:14.6]} 5. Nxf6+ {[%clk 0:03:04.6]}
5... exf6 {[%clk 0:02:16.5]} 6. Bc4 {[%clk 0:03:05.1]} 6... Bd6 {[%clk
0:02:17.1]} 7. Qh5 {[%clk 0:03:03.5]} 7... O-O {[%clk 0:02:13.4]} 8. Ne2 {[%clk
0:03:04.4]} 8... Nd7 {[%clk 0:02:09.3]} 9. Be3 {[%clk 0:03:02.9]} 9... b5 {[%clk
0:01:50.1]} 10. Bd3 {[%clk 0:03:02.9]} 10... g6 {[%clk 0:01:50.9]} 11. Qf3
{[%clk 0:03:00.6]} 11... Bb7 {[%clk 0:01:49.6]} 12. h4 {[%clk 0:02:59.8]} 12...
Re8 {[%clk 0:01:27.6]} 13. O-O-O {[%clk 0:02:59.1]} 13... Qc7 {[%clk 0:01:28.2]}
14. h5 {[%clk 0:02:59]} 14... c5 {[%clk 0:01:29.5]} 15. Qh3 {[%clk 0:02:54.9]}
15... Nf8 {[%clk 0:01:30.3]} 16. hxg6 {[%clk 0:02:52.4]} 16... fxg6 {[%clk
0:01:30.4]} 17. Bxb5 {[%clk 0:02:49.9]} 17... Rec8 {[%clk 0:01:22.7]} 18. Bc4+
{[%clk 0:02:44.2]} 18... Kh8 {[%clk 0:01:22.4]} 19. Bh6 {[%clk 0:02:25.2]} 19...
cxd4 {[%clk 0:01:20.7]} 20. Bxf8 {[%clk 0:02:18.8]} 20... Rxf8 {[%clk
0:01:17.2]} 21. Nxd4 {[%clk 0:02:18.8]} 21... Bc8 {[%clk 0:01:09.5]} 22. Be6
{[%clk 0:02:16.3]} 22... Be5 {[%clk 0:01:03.3]} 23. Kb1 {[%clk 0:02:06.5]} 23...
Rb8 {[%clk 0:01:03.1]} 24. f4 {[%clk 0:01:56.9]} 24... Bxd4 {[%clk 0:00:52.4]}
25. Rxd4 {[%clk 0:01:52.6]} 25... Bxe6 {[%clk 0:00:53.3]} 26. Qxe6 {[%clk
0:01:51.5]} 26... Qc3 {[%clk 0:00:54.7]} 27. Rxh7+ {[%clk 0:00:47.6]} 27... Kxh7
{[%clk 0:00:53.3]} 28. Qe7+ {[%clk 0:00:34.1]} 28... Kg8 {[%clk 0:00:46.7]} 29.
Qe6+ {[%clk 0:00:34.4]} 29... Kh8 {[%clk 0:00:41.1]} 30. Qh3+ {[%clk 0:00:24.5]}
30... Kg8 {[%clk 0:00:41]} 31. Qxc3 {[%clk 0:00:24]} 1-0